[Event "Charlotte Open 2020"]
[Site "Charlotte"]
[Date "2020.01.02"]
[Round "2.19"]
[White "Mulyar, Michael"]
[Black "Ngo, Bach"]
[Result "1-0"]
[ECO "E11"]
[WhiteElo "2380"]
[BlackElo "2027"]
[Annotator "ChessBase"]
[PlyCount "95"]
[EventDate "2020.01.02"]
[EventType "swiss"]
[EventCountry "USA"]
[SourceTitle "playchess.com"]
[Source "ChessBase"]
[SourceQuality "1"]
[TimeControl "6000+30"]

1. d4 {[%emt 1:40:30]} Nf6 {[%emt 1:40:30]} 2. Nf3 {[%emt 0:00:30]} e6 {[%emt 0:00:30]} 3. c4 {[%emt 0:00:30]} Bb4+ {[%emt 0:00:30]} 4. Bd2 {[%emt 0:00:30]} Qe7 {[%emt 0:00:30]} 5. g3 {[%emt 0:00:30]} Nc6 {[%emt 0:00:30]} 6. Nc3 {[%emt 0:00:30]} Bxc3 {[%emt 0:00:30]} 7. Bxc3 {[%emt 0:00:30]} Ne4 {[%emt 0:00:30]} 8. Rc1 {[%emt 0:00:30]} O-O {[%emt 0:00:30]} 9. Bg2 {[%emt 0:00:30]} Nxc3 {[%emt 0:00:30]} 10. Rxc3 {[%emt 0:00:30]} d6 {[%emt 0:00:30]} 11. d5 {[%emt 0:00:30]} Nb8 {[%emt 0:00:30]} 12. dxe6 {[%emt 0:00:30]} fxe6 {[%emt 0:00:30]} 13. O-O {[%emt 0:00:30]} e5 {[%emt 0:00:30]} 14. c5 {[%emt 0:00:30]} Nc6 {[%emt 0:00:30]} 15. cxd6 {[%emt 0:00:30]} cxd6 {[%emt 0:00:30]} 16. Ne1 {[%emt 0:00:30]} Be6 {[%emt 0:00:30]} 17. Nc2 {[%emt 0:00:30]} Rac8 {[%emt 0:00:30]} 18. Qd2 {[%emt 0:00:30]} Kh8 {[%emt 0:00:30]} 19. b3 {[%emt 0:00:30]} d5 {[%emt 0:00:30]} 20. Bxd5 {[%emt 0:00:30]} Bxd5 {[%emt 0:00:30]} 21. Qxd5 {[%emt 0:00:30]} Nd4 {[%emt 0:00:30]} 22. Rxc8 {[%emt 0:00:30]} Nxe2+ {[%emt 0:00:30]} 23. Kg2 {[%emt 0:00:30]} Rxc8 {[%emt 0:00:30]} 24. Qd2 {[%emt 0:00:30]} Nc3 {[%emt 0:00:30]} 25. Ne3 {[%emt 0:00:30]} Qd8 {[%emt 0:00:30]} 26. Qxd8+ {[%emt 0:00:30]} Rxd8 {[%emt 0:00:30]} 27. Rc1 {[%emt 0:00:30]} Nxa2 {[%emt 0:00:30]} 28. Rc7 {[%emt 0:00:30]} b6 {[%emt 0:00:30]} 29. Rxa7 {[%emt 0:00:30]} Nc1 {[%emt 0:00:30]} 30. b4 {[%emt 0:00:30]} Nd3 {[%emt 0:00:30]} 31. b5 {[%emt 0:00:30]} Rf8 {[%emt 0:00:30]} 32. Ra2 {[%emt 0:00:30]} h6 {[%emt 0:00:30]} 33. Nd5 {[%emt 0:00:30]} e4 {[%emt 0:00:30]} 34. Nxb6 {[%emt 0:00:30]} Rb8 {[%emt 0:00:30]} 35. Ra8 {[%emt 0:00:30]} Rxa8 {[%emt 0:00:30]} 36. Nxa8 {[%emt 0:00:30]} Nc5 {[%emt 0:00:30]} 37. Kf1 {[%emt 0:00:30]} Kg8 {[%emt 0:00:30]} 38. Ke2 {[%emt 0:00:30]} Kf7 {[%emt 0:00:30]} 39. Ke3 {[%emt 0:00:30]} Ke6 {[%emt 0:00:30]} 40. Nb6 {[%emt 0:00:30]} Kd6 {[%emt 0:00:30]} 41. Nc4+ {[%emt 0:00:30]} Kd5 {[%emt 0:00:30]} 42. Nd2 {[%emt 0:00:30]} g6 {[%emt 0:00:30]} 43. h4 {[%emt 0:00:30]} g5 {[%emt 0:00:30]} 44. hxg5 {[%emt 0:00:30]} hxg5 {[%emt 0:00:30]} 45. b6 {[%emt 0:00:30]} Kc6 {[%emt 0:00:30]} 46. Nxe4 {[%emt 0:00:30]} Ne6 {[%emt 0:00:30]} 47. Kf3 {[%emt 0:00:30]} Kxb6 {[%emt 0:00:30]} 48. Kg4 {[%emt 0:00:30]} 1-0

[Event "Charlotte Open 2020"]
[Site "Charlotte"]
[Date "2020.01.02"]
[Round "2.20"]
[White "Xu, Grant"]
[Black "Vigorito, David"]
[Result "1/2-1/2"]
[ECO "B18"]
[WhiteElo "2228"]
[BlackElo "2368"]
[Annotator "ChessBase"]
[PlyCount "107"]
[EventDate "2020.01.02"]
[EventType "swiss"]
[EventCountry "USA"]
[SourceTitle "playchess.com"]
[Source "ChessBase"]
[SourceQuality "1"]
[TimeControl "6000+30"]

1. e4 {[%emt 1:40:30]} c6 {[%emt 1:40:30]} 2. d4 {[%emt 0:00:30]} d5 {[%emt 0:00:30]} 3. Nd2 {[%emt 0:00:30]} dxe4 {[%emt 0:00:30]} 4. Nxe4 {[%emt 0:00:30]} Bf5 {[%emt 0:00:30]} 5. Ng3 {[%emt 0:00:30]} Bg6 {[%emt 0:00:30]} 6. h4 {[%emt 0:00:30]} h6 {[%emt 0:00:30]} 7. Nh3 {[%emt 0:00:30]} Nf6 {[%emt 0:00:30]} 8. Nf4 {[%emt 0:00:30]} Bh7 {[%emt 0:00:30]} 9. c3 {[%emt 0:00:30]} e6 {[%emt 0:00:30]} 10. Bd3 {[%emt 0:00:30]} Bxd3 {[%emt 0:00:30]} 11. Qxd3 {[%emt 0:00:30]} Nbd7 {[%emt 0:00:30]} 12. Bd2 {[%emt 0:00:30]} Qc7 {[%emt 0:00:30]} 13. O-O-O {[%emt 0:00:30]} O-O-O {[%emt 0:00:30]} 14. Qf3 {[%emt 0:00:30]} Bd6 {[%emt 0:00:30]} 15. Nfh5 {[%emt 0:00:30]} Rhg8 {[%emt 0:00:30]} 16. Nxf6 {[%emt 0:00:30]} Nxf6 {[%emt 0:00:30]} 17. Ne4 {[%emt 0:00:30]} Nxe4 {[%emt 0:00:30]} 18. Qxe4 {[%emt 0:00:30]} Qa5 {[%emt 0:00:30]} 19. Kb1 {[%emt 0:00:30]} Qd5 {[%emt 0:00:30]} 20. Rhe1 {[%emt 0:00:30]} Qxe4+ {[%emt 0:00:30]} 21. Rxe4 {[%emt 0:00:30]} h5 {[%emt 0:00:30]} 22. Kc2 {[%emt 0:00:30]} b5 {[%emt 0:00:30]} 23. b3 {[%emt 0:00:30]} Kb7 {[%emt 0:00:30]} 24. f3 {[%emt 0:00:30]} Rd7 {[%emt 0:00:30]} 25. Rg1 {[%emt 0:00:30]} Rh8 {[%emt 0:00:30]} 26. g3 {[%emt 0:00:30]} a6 {[%emt 0:00:30]} 27. Be1 {[%emt 0:00:30]} c5 {[%emt 0:00:30]} 28. Bf2 {[%emt 0:00:30]} Kc6 {[%emt 0:00:30]} 29. Rd1 {[%emt 0:00:30]} c4 {[%emt 0:00:30]} 30. Ra1 {[%emt 0:00:30]} Rb7 {[%emt 0:00:30]} 31. Ree1 {[%emt 0:00:30]} Kd5 {[%emt 0:00:30]} 32. Reb1 {[%emt 0:00:30]} Rc8 {[%emt 0:00:30]} 33. b4 {[%emt 0:00:30]} Ra8 {[%emt 0:00:30]} 34. a4 {[%emt 0:00:30]} Rba7 {[%emt 0:00:30]} 35. axb5 {[%emt 0:00:30]} axb5 {[%emt 0:00:30]} 36. Rxa7 {[%emt 0:00:30]} Rxa7 {[%emt 0:00:30]} 37. Kb2 {[%emt 0:00:30]} g6 {[%emt 0:00:30]} 38. Rg1 {[%emt 0:00:30]} Ra8 {[%emt 0:00:30]} 39. Be3 {[%emt 0:00:30]} Bc7 {[%emt 0:00:30]} 40. Bf4 {[%emt 0:00:30]} Bd8 {[%emt 0:00:30]} 41. Re1 {[%emt 0:00:30]} Bf6 {[%emt 0:00:30]} 42. Be5 {[%emt 0:00:30]} Be7 {[%emt 0:00:30]} 43. Bf4 {[%emt 0:00:30]} Bf6 {[%emt 0:00:30]} 44. g4 {[%emt 0:00:30]} hxg4 {[%emt 0:00:30]} 45. fxg4 {[%emt 0:00:30]} Bxh4 {[%emt 0:00:30]} 46. Re5+ {[%emt 0:00:30]} Kc6 {[%emt 0:00:30]} 47. Rc5+ {[%emt 0:00:30]} Kb6 {[%emt 0:00:30]} 48. g5 {[%emt 0:00:30]} Ra7 {[%emt 0:00:30]} 49. Rc8 {[%emt 0:00:30]} Rd7 {[%emt 0:00:30]} 50. Rh8 {[%emt 0:00:30]} Be1 {[%emt 0:00:30]} 51. Rh1 {[%emt 0:00:30]} Bf2 {[%emt 0:00:30]} 52. Rf1 {[%emt 0:00:30]} Bh4 {[%emt 0:00:30]} 53. Rh1 {[%emt 0:00:30]} Bf2 {[%emt 0:00:30]} 54. Rf1 {[%emt 0:00:30]} 1/2-1/2

[Event "Charlotte Open 2020"]
[Site "Charlotte"]
[Date "2020.01.03"]
[Round "4.3"]
[White "Bajarani, Ulvi"]
[Black "Peng, Shunkai"]
[Result "1-0"]
[ECO "E06"]
[WhiteElo "2468"]
[BlackElo "2315"]
[Annotator "RC"]
[PlyCount "101"]
[EventDate "2020.01.02"]
[EventType "swiss"]
[EventCountry "USA"]
[SourceTitle "playchess.com"]
[Source "ChessBase"]
[SourceQuality "1"]
[TimeControl "6000+30"]

1. d4 {[%emt 0:00:00]} Nf6 {[%emt 0:03:07]} 2. c4 {[%emt 0:00:00]} e6 {[%emt 0:00:47]} 3. Nf3 {[%emt 0:00:00]} d5 {[%emt 0:00:54]} 4. g3 {[%emt 0:00:00]} Be7 {[%emt 0:00:53]} 5. Bg2 {[%emt 0:00:00]} O-O {[%emt 0:00:56]} 6. Nc3 {[%emt 0:00:03]} c6 {[%emt 0:05:27]} 7. O-O {[%emt 0:00:12]} b6 {[%emt 0:01:31]} 8. Bf4 {[%emt 0:02:51]} Nh5 {[%emt 0:09:09]} 9. Bd2 {[%emt 0:05:33]} Nf6 {[%emt 0:02:57]} 10. Bf4 {[%emt 0:01:01]} Nh5 {[%emt 0:03:40]} 11. Be3 {[%emt 0:00:24]} Nf6 {[%emt 0:05:41]} 12. Ne5 {[%emt 0:00:12]} Bb7 {[%emt 0:00:42]} 13. Rc1 {[%emt 0:06:25]} Nbd7 {[%emt 0:02:30]} 14. cxd5 {[%emt 0:05:06]} Nxe5 {[%emt 0:03:01]} 15. dxe5 {[%emt 0:00:25]} Nxd5 {[%emt 0:00:16]} 16. Nxd5 {[%emt 0:00:32]} cxd5 {[%emt 0:00:44]} 17. Qa4 {[%emt 0:02:36]} Qe8 {[%emt 0:06:27]} 18. Qxe8 {[%emt 0:00:44]} Rfxe8 {[%emt 0:00:25]} 19. Rc7 {[%emt 0:02:55]} Ba6 {[%emt 0:04:16]} 20. Bf3 {[%emt 0:00:17]} Kf8 {[%emt 0:01:07]} 21. Rfc1 {[%emt 0:03:49]} Rec8 {[%emt 0:00:32]} 22. h4 {[%emt 0:02:29]} Bd8 {[%emt 0:02:55]} 23. R7c3 {[%emt 0:00:54]} Rxc3 {[%emt 0:01:54]} 24. Rxc3 {[%emt 0:00:07]} Bb7 {[%emt 0:00:13]} 25. Bd4 {[%emt 0:04:26]} Ke8 {[%emt 0:02:14]} 26. h5 {[%emt 0:01:29]} Kd7 {[%emt 0:04:40]} 27. e3 {[%emt 0:00:12]} a5 {[%emt 0:15:43]} 28. Bd1 {[%emt 0:01:50]} b5 {[%emt 0:05:38]} 29. Be2 {[%emt 0:03:03]} Ba6 {[%emt 0:00:40]} 30. Rc5 {[%emt 0:06:18]} b4 {[%emt 0:02:23]} 31. Bd1 {[%emt 0:00:16]} Bb6 {[%emt 0:03:32]} 32. Ba4+ {[%emt 0:00:29]} Kd8 {[%emt 0:00:11]} 33. Rc6 {[%emt 0:07:38]} Bxd4 {[%emt 0:01:22]} 34. exd4 {[%emt 0:00:08]} Bc8 {[%emt 0:00:10]} 35. f4 {[%emt 0:01:08]} Ra6 {[%emt 0:00:48]} 36. Rc5 {[%emt 0:01:46]} Bd7 {[%emt 0:01:47]} 37. Bxd7 {[%emt 0:02:35]} Kxd7 {[%emt 0:00:01]} 38. Kf2 {[%emt 0:00:18]} Rc6 {[%emt 0:02:58]} 39. Rxc6 {[%emt 0:00:13]} Kxc6 {[%emt 0:00:01]} 40. g4 {[%emt 0:00:28]} Kb5 {[%emt 0:08:46]} 41. b3 {[%emt 0:00:15]} Kc6 {[%emt 0:00:12]} 42. Kg3 {[%emt 0:00:38]} Kd7 {[%emt 0:00:22]} 43. Kh4 {[%emt 0:00:11]} h6 {[%emt 0:06:19]} 44. g5 {[%emt 0:00:19]} Ke7 {[%emt 0:01:14]} 45. Kg4 {[%emt 0:00:07]} Kf8 {[%emt 0:01:03]} 46. f5 {[%emt 0:00:27]} Kg8 {[%emt 0:01:47]} 47. Kf4 {[%emt 0:01:12]} hxg5+ {[%emt 0:00:43]} 48. Kxg5 {[%emt 0:00:16]} Kh7 {[%emt 0:00:43]} 49. f6 {[%emt 0:00:19]} Kg8 {[%emt 0:00:37]} 50. fxg7 {[%emt 0:00:09]} Kxg7 {[%emt 0:00:21]} 51. h6+ {[%emt 0:00:05]} 1-0

[Event "Charlotte Open 2020"]
[Site "Charlotte"]
[Date "2020.01.03"]
[Round "4.4"]
[White "Grabinsky, Aaron"]
[Black "Hilby, Craig"]
[Result "1/2-1/2"]
[ECO "A05"]
[WhiteElo "2363"]
[BlackElo "2434"]
[Annotator "NA"]
[PlyCount "47"]
[EventDate "2020.01.02"]
[EventType "swiss"]
[EventCountry "USA"]
[SourceTitle "playchess.com"]
[Source "ChessBase"]
[SourceQuality "1"]
[TimeControl "6000+30"]

1. Nf3 {[%emt 0:04:11]} Nf6 {[%emt 0:00:00]} 2. g3 {[%emt 0:00:04]} b5 {[%emt 0:00:00]} 3. Na3 {[%emt 0:00:04]} a6 {[%emt 0:02:06]} 4. c4 {[%emt 0:00:05]} b4 {[%emt 0:02:02]} 5. Nc2 {[%emt 0:00:06]} a5 {[%emt 0:03:07]} 6. Bg2 {[%emt 0:00:21]} Bb7 {[%emt 0:00:21]} 7. O-O {[%emt 0:00:18]} g6 {[%emt 0:05:29]} 8. b3 {[%emt 0:06:58]} Bg7 {[%emt 0:00:10]} 9. Bb2 {[%emt 0:00:05]} c5 {[%emt 0:03:30]} 10. a3 {[%emt 0:03:24]} Na6 {[%emt 0:02:57]} 11. axb4 {[%emt 0:02:01]} axb4 {[%emt 0:00:20]} 12. d3 {[%emt 0:03:39]} O-O {[%emt 0:01:23]} 13. e4 {[%emt 0:02:07]} d6 {[%emt 0:01:56]} 14. Nd2 {[%emt 0:06:45]} Qb6 {[%emt 0:03:49]} 15. Re1 {[%emt 0:03:24]} Nc7 {[%emt 0:01:28]} 16. Qe2 {[%emt 0:02:44]} Nd7 {[%emt 0:02:04]} 17. Bxg7 {[%emt 0:00:41]} Kxg7 {[%emt 0:00:25]} 18. f4 {[%emt 0:02:02]} Rxa1 {[%emt 0:07:09]} 19. Rxa1 {[%emt 0:00:07]} Ra8 {[%emt 0:00:06]} 20. Rxa8 {[%emt 0:01:04]} Bxa8 {[%emt 0:00:09]} 21. Qe1 {[%emt 0:00:42]} Qa7 {[%emt 0:00:29]} 22. Qb1 {[%emt 0:01:18]} e5 {[%emt 0:04:33]} 23. Qb2 {[%emt 0:01:53]} f6 {[%emt 0:00:48]} 24. Bh3 {[%emt 0:02:00]} 1/2-1/2

[Event "Charlotte Open 2020"]
[Site "Charlotte"]
[Date "2020.01.03"]
[Round "4.7"]
[White "Iotov, Valentin"]
[Black "Wheeler, Cameron"]
[Result "1/2-1/2"]
[ECO "A26"]
[WhiteElo "2516"]
[BlackElo "2383"]
[Annotator "ChessBase"]
[PlyCount "75"]
[EventDate "2020.01.02"]
[EventType "swiss"]
[EventCountry "USA"]
[SourceTitle "playchess.com"]
[Source "ChessBase"]
[SourceQuality "1"]
[TimeControl "6000+30"]

1. c4 {[%emt 0:02:24]} e5 {[%emt 0:01:19]} 2. Nc3 {[%emt 0:00:08]} Nc6 {[%emt 0:00:12]} 3. g3 {[%emt 0:00:24]} g6 {[%emt 0:00:31]} 4. Bg2 {[%emt 0:00:04]} Bg7 {[%emt 0:00:06]} 5. e4 {[%emt 0:00:10]} d6 {[%emt 0:00:42]} 6. Nge2 {[%emt 0:00:07]} f5 {[%emt 0:00:21]} 7. d3 {[%emt 0:00:17]} Nf6 {[%emt 0:00:15]} 8. O-O {[%emt 0:00:13]} O-O {[%emt 0:00:32]} 9. Nd5 {[%emt 0:00:15]} Nxd5 {[%emt 0:01:07]} 10. cxd5 {[%emt 0:00:03]} Ne7 {[%emt 0:00:06]} 11. Bg5 {[%emt 0:00:05]} h6 {[%emt 0:03:25]} 12. Be3 {[%emt 0:00:03]} c6 {[%emt 0:03:58]} 13. dxc6 {[%emt 0:00:26]} bxc6 {[%emt 0:00:06]} 14. Rc1 {[%emt 0:00:12]} Rb8 {[%emt 0:10:21]} 15. b3 {[%emt 0:08:06]} Kh7 {[%emt 0:16:23]} 16. Qd2 {[%emt 0:07:06]} c5 {[%emt 0:01:27]} 17. f4 {[%emt 0:03:43]} exf4 {[%emt 0:01:28]} 18. Nxf4 {[%emt 0:00:19]} fxe4 {[%emt 0:04:49]} 19. dxe4 {[%emt 0:06:34]} Rb6 {[%emt 0:15:17]} 20. Rfd1 {[%emt 0:14:44]} Bg4 {[%emt 0:02:13]} 21. Bxc5 {[%emt 0:00:57]} Bxd1 {[%emt 0:01:55]} 22. Rxd1 {[%emt 0:01:13]} dxc5 {[%emt 0:09:25]} 23. Qxd8 {[%emt 0:00:02]} Rxd8 {[%emt 0:00:07]} 24. Rxd8 {[%emt 0:00:03]} Nc6 {[%emt 0:00:13]} 25. Rd7 {[%emt 0:01:30]} Ne5 {[%emt 0:00:06]} 26. Rxa7 {[%emt 0:00:25]} c4 {[%emt 0:00:06]} 27. Nd5 {[%emt 0:01:09]} cxb3 {[%emt 0:00:10]} 28. axb3 {[%emt 0:00:10]} Rxb3 {[%emt 0:00:07]} 29. Nf6+ {[%emt 0:30:24]} Kh8 {[%emt 0:00:03]} 30. Ra8+ {[%emt 0:00:48]} Bf8 {[%emt 0:00:06]} 31. Rxf8+ {[%emt 0:17:24]} Kg7 {[%emt 0:00:35]} 32. Nh7 {[%emt 0:00:11]} Rb1+ {[%emt 0:04:30]} 33. Rf1 {[%emt 0:05:47]} Rxf1+ {[%emt 0:00:06]} 34. Bxf1 {[%emt 0:00:16]} Kxh7 {[%emt 0:00:12]} 35. Kf2 {[%emt 0:00:24]} Kg7 {[%emt 0:00:13]} 36. Ke3 {[%emt 0:00:40]} Kf6 {[%emt 0:00:40]} 37. Kd4 {[%emt 0:01:07]} Ke6 {[%emt 0:00:15]} 38. Be2 {[%emt 0:03:16]} 1/2-1/2

[Event "Charlotte Open 2020"]
[Site "Charlotte"]
[Date "2020.01.03"]
[Round "4.10"]
[White "Brodsky, David"]
[Black "Vigorito, David"]
[Result "1-0"]
[ECO "B67"]
[WhiteElo "2466"]
[BlackElo "2368"]
[Annotator "RC"]
[PlyCount "45"]
[EventDate "2020.01.02"]
[EventType "swiss"]
[EventCountry "USA"]
[SourceTitle "playchess.com"]
[Source "ChessBase"]
[SourceQuality "1"]
[TimeControl "6000+30"]

1. e4 {[%emt 0:00:00]} c5 {[%emt 0:00:12]} 2. Nf3 {[%emt 0:00:00]} d6 {[%emt 0:00:13]} 3. d4 {[%emt 0:00:00]} cxd4 {[%emt 0:00:07]} 4. Nxd4 {[%emt 0:00:00]} Nf6 {[%emt 0:00:25]} 5. Nc3 {[%emt 0:00:00]} Nc6 {[%emt 0:00:13]} 6. Bg5 {[%emt 0:00:32]} e6 {[%emt 0:00:22]} 7. Qd2 {[%emt 0:00:13]} a6 {[%emt 0:00:41]} 8. O-O-O {[%emt 0:00:47]} Bd7 {[%emt 0:00:39]} 9. f3 {[%emt 0:01:27]} Be7 {[%emt 0:01:07]} 10. h4 {[%emt 0:04:16]} h6 {[%emt 0:00:46]} 11. Be3 {[%emt 0:00:56]} h5 {[%emt 0:00:26]} 12. Bg5 {[%emt 0:03:02]} Qc7 {[%emt 0:02:00]} 13. Kb1 {[%emt 0:03:02]} Ne5 {[%emt 0:06:16]} 14. f4 {[%emt 0:34:14]} Neg4 {[%emt 0:01:33]} 15. Bd3 {[%emt 0:00:44]} Qb6 {[%emt 0:20:01]} 16. Bc4 {[%emt 0:04:25]} Rc8 {[%emt 0:01:54]} 17. Bb3 {[%emt 0:02:31]} Rxc3 {[%emt 0:02:01]} 18. Qxc3 {[%emt 0:04:35]} Nxe4 {[%emt 0:00:32]} 19. Qe1 {[%emt 0:10:25]} Nxg5 {[%emt 0:23:37]} 20. hxg5 {[%emt 0:03:08]} g6 {[%emt 0:02:51]} 21. Qe2 {[%emt 0:05:50]} d5 {[%emt 0:10:26]} 22. c3 {[%emt 0:11:36]} Kf8 {[%emt 0:08:35]} 23. Qxg4 {[%emt 0:00:48]} 1-0

[Event "Charlotte Open 2020"]
[Site "Charlotte"]
[Date "2020.01.03"]
[Round "4.16"]
[White "Puckett, Matthew"]
[Black "Fedorowicz, John"]
[Result "1/2-1/2"]
[ECO "E11"]
[WhiteElo "2148"]
[BlackElo "2430"]
[Annotator "NA"]
[PlyCount "36"]
[EventDate "2020.01.02"]
[EventType "swiss"]
[EventCountry "USA"]
[SourceTitle "playchess.com"]
[Source "ChessBase"]
[SourceQuality "1"]
[TimeControl "6000+30"]

1. d4 {[%emt 1:40:30]} Nf6 {[%emt 1:40:30]} 2. c4 {[%emt 0:00:30]} e6 {[%emt 0:00:30]} 3. g3 {[%emt 0:00:30]} Bb4+ {[%emt 0:00:30]} 4. Bd2 {[%emt 0:00:30]} Qe7 {[%emt 0:00:30]} 5. Nf3 {[%emt 0:00:30]} Nc6 {[%emt 0:00:30]} 6. Nc3 {[%emt 0:00:30]} Bxc3 {[%emt 0:00:30]} 7. Bxc3 {[%emt 0:00:30]} Ne4 {[%emt 0:00:30]} 8. Rc1 {[%emt 0:00:30]} O-O {[%emt 0:00:30]} 9. Bg2 {[%emt 0:00:30]} d6 {[%emt 0:00:30]} 10. d5 {[%emt 0:00:30]} Nxc3 {[%emt 0:00:30]} 11. Rxc3 {[%emt 0:00:30]} Nd8 {[%emt 0:00:30]} 12. O-O {[%emt 0:00:30]} e5 {[%emt 0:00:30]} 13. Qc2 {[%emt 0:00:30]} c5 {[%emt 0:00:30]} 14. dxc6 {[%emt 0:00:30]} Nxc6 {[%emt 0:00:30]} 15. e3 {[%emt 0:00:30]} Be6 {[%emt 0:00:30]} 16. Rd1 {[%emt 0:00:30]} Rfd8 {[%emt 0:00:30]} 17. a3 {[%emt 0:00:30]} a5 {[%emt 0:00:30]} 18. b3 {[%emt 0:00:30]} g6 {[%emt 0:00:30]} 1/2-1/2

[Event "Charlotte Open 2020"]
[Site "Charlotte"]
[Date "2020.01.03"]
[Round "4.18"]
[White "Narva, Mai"]
[Black "Polgar-Shutzman, Tom"]
[Result "1-0"]
[ECO "B06"]
[WhiteElo "2321"]
[BlackElo "2233"]
[Annotator "ChessBase"]
[PlyCount "51"]
[EventDate "2020.01.02"]
[EventType "swiss"]
[EventCountry "USA"]
[SourceTitle "playchess.com"]
[Source "ChessBase"]
[SourceQuality "1"]
[TimeControl "6000+30"]

1. e4 {[%emt 1:40:30]} g6 {[%emt 1:40:30]} 2. d4 {[%emt 0:00:30]} Bg7 {[%emt 0:00:30]} 3. Nc3 {[%emt 0:00:30]} d5 {[%emt 0:00:30]} 4. exd5 {[%emt 0:00:30]} Nf6 {[%emt 0:00:30]} 5. Bc4 {[%emt 0:00:30]} Nbd7 {[%emt 0:00:30]} 6. Nf3 {[%emt 0:00:30]} O-O {[%emt 0:00:30]} 7. O-O {[%emt 0:00:30]} Nb6 {[%emt 0:00:30]} 8. Bb3 {[%emt 0:00:30]} a5 {[%emt 0:00:30]} 9. a3 {[%emt 0:00:30]} a4 {[%emt 0:00:30]} 10. Ba2 {[%emt 0:00:30]} Nbxd5 {[%emt 0:00:30]} 11. Nxd5 {[%emt 0:00:30]} Nxd5 {[%emt 0:00:30]} 12. Qe2 {[%emt 0:00:30]} Bg4 {[%emt 0:00:30]} 13. Rd1 {[%emt 0:00:30]} c6 {[%emt 0:00:30]} 14. c4 {[%emt 0:00:30]} Nc7 {[%emt 0:00:30]} 15. Be3 {[%emt 0:00:30]} Qd7 {[%emt 0:00:30]} 16. h3 {[%emt 0:00:30]} Bxf3 {[%emt 0:00:30]} 17. Qxf3 {[%emt 0:00:30]} Rfd8 {[%emt 0:00:30]} 18. Rd2 {[%emt 0:00:30]} Ra5 {[%emt 0:00:30]} 19. Rad1 {[%emt 0:00:30]} e6 {[%emt 0:00:30]} 20. d5 {[%emt 0:00:30]} cxd5 {[%emt 0:00:30]} 21. Bb6 {[%emt 0:00:30]} Ra6 {[%emt 0:00:30]} 22. cxd5 {[%emt 0:00:30]} Qc8 {[%emt 0:00:30]} 23. dxe6 {[%emt 0:00:30]} Rxd2 {[%emt 0:00:30]} 24. Qxf7+ {[%emt 0:00:30]} Kh8 {[%emt 0:00:30]} 25. Rxd2 {[%emt 0:00:30]} Rxb6 {[%emt 0:00:30]} 26. e7 {[%emt 0:00:30]} 1-0

[Event "Charlotte Open 2020"]
[Site "Charlotte"]
[Date "2020.01.03"]
[Round "4.20"]
[White "Cezila Jr, Rubens"]
[Black "Ngo, Bach"]
[Result "1-0"]
[ECO "A14"]
[WhiteElo "2239"]
[BlackElo "2027"]
[Annotator "ChessBase"]
[PlyCount "79"]
[EventDate "2020.01.02"]
[EventType "swiss"]
[EventCountry "USA"]
[SourceTitle "playchess.com"]
[Source "ChessBase"]
[SourceQuality "1"]
[TimeControl "6000+30"]

1. b3 {[%emt 1:40:30]} Nf6 {[%emt 1:40:30]} 2. Bb2 {[%emt 0:00:30]} e6 {[%emt 0:00:30]} 3. g3 {[%emt 0:00:30]} Be7 {[%emt 0:00:30]} 4. Bg2 {[%emt 0:00:30]} O-O {[%emt 0:00:30]} 5. Nf3 {[%emt 0:00:30]} d5 {[%emt 0:00:30]} 6. O-O {[%emt 0:00:30]} b6 {[%emt 0:00:30]} 7. c4 {[%emt 0:00:30]} Bb7 {[%emt 0:00:30]} 8. e3 {[%emt 0:00:30]} c5 {[%emt 0:00:30]} 9. Qe2 {[%emt 0:00:30]} Nbd7 {[%emt 0:00:30]} 10. Rd1 {[%emt 0:00:30]} Qc7 {[%emt 0:00:30]} 11. Nc3 {[%emt 0:00:30]} Rac8 {[%emt 0:00:30]} 12. Rac1 {[%emt 0:00:30]} Rfd8 {[%emt 0:00:30]} 13. cxd5 {[%emt 0:00:30]} Nxd5 {[%emt 0:00:30]} 14. Nxd5 {[%emt 0:00:30]} Bxd5 {[%emt 0:00:30]} 15. e4 {[%emt 0:00:30]} Bb7 {[%emt 0:00:30]} 16. d4 {[%emt 0:00:30]} Bf6 {[%emt 0:00:30]} 17. b4 {[%emt 0:00:30]} Qc6 {[%emt 0:00:30]} 18. e5 {[%emt 0:00:30]} Be7 {[%emt 0:00:30]} 19. Ne1 {[%emt 0:00:30]} Qc7 {[%emt 0:00:30]} 20. d5 {[%emt 0:00:30]} Bxd5 {[%emt 0:00:30]} 21. Bxd5 {[%emt 0:00:30]} exd5 {[%emt 0:00:30]} 22. e6 {[%emt 0:00:30]} Nf6 {[%emt 0:00:30]} 23. Nf3 {[%emt 0:00:30]} Ne4 {[%emt 0:00:30]} 24. exf7+ {[%emt 0:00:30]} Kxf7 {[%emt 0:00:30]} 25. Rxd5 {[%emt 0:00:30]} Rxd5 {[%emt 0:00:30]} 26. Qxe4 {[%emt 0:00:30]} Qd6 {[%emt 0:00:30]} 27. Qg4 {[%emt 0:00:30]} Rf8 {[%emt 0:00:30]} 28. bxc5 {[%emt 0:00:30]} bxc5 {[%emt 0:00:30]} 29. Qxg7+ {[%emt 0:00:30]} Ke8 {[%emt 0:00:30]} 30. Qg4 {[%emt 0:00:30]} Qd7 {[%emt 0:00:30]} 31. Qe4 {[%emt 0:00:30]} Qf5 {[%emt 0:00:30]} 32. Qa4+ {[%emt 0:00:30]} Kf7 {[%emt 0:00:30]} 33. Qb3 {[%emt 0:00:30]} Kg6 {[%emt 0:00:30]} 34. Kg2 {[%emt 0:00:30]} Bf6 {[%emt 0:00:30]} 35. Bxf6 {[%emt 0:00:30]} Kxf6 {[%emt 0:00:30]} 36. Rc4 {[%emt 0:00:30]} Qd3 {[%emt 0:00:30]} 37. Rf4+ {[%emt 0:00:30]} Ke7 {[%emt 0:00:30]} 38. Qb7+ {[%emt 0:00:30]} Rd7 {[%emt 0:00:30]} 39. Re4+ {[%emt 0:00:30]} Kd6 {[%emt 0:00:30]} 40. Qxd7+ {[%emt 0:00:30]} 1-0